fUSD/lending_fUSD_20241222
["ID","MTS","AMOUNT","RATE_DAILY","PERIOD"]
[346342901,1734900643012,-3667.91,0.00019178,2]
[346342902,1734900643021,-500.0,0.00019178,2]
[346342903,1734900643030,-500.0,0.00019178,2]
[346342904,1734900643039,-1149.01,0.00019178,2]
[346342905,1734900643049,-500.0,0.00019178,2]
[346342906,1734900643060,-4474.7,0.00019178,2]
[346342908,1734900643069,-500.0,0.00019178,2]
[346342909,1734900643079,-500.0,0.00019178,2]
[346342911,1734900643089,-2891.63,0.00019178,2]
[346342912,1734900643098,-750.87,0.00019178,2]
[346342915,1734900643107,-1848.36,0.00019178,2]
[346342917,1734900643116,-500.0,0.00019178,2]
[346342919,1734900643125,-500.0,0.00019178,2]
[346342921,1734900643134,-500.0,0.00019178,2]
[346342923,1734900643143,-500.0,0.00019178,2]
[346342925,1734900643152,-500.0,0.00019178,2]
[346342927,1734900643162,-500.0,0.00019178,2]
[346342930,1734900643172,-500.0,0.00019178,2]
[346342933,1734900643182,-500.0,0.00019178,2]
[346342935,1734900643192,-500.0,0.00019178,2]
[346342937,1734900643201,-500.0,0.00019178,2]
[346342939,1734900643211,-2202.55,0.00019178,2]
[346342941,1734900643220,-500.0,0.00019178,2]
[346342943,1734900643230,-500.0,0.00019178,2]
[346342945,1734900643240,-500.0,0.00019178,2]
[346342947,1734900643249,-500.0,0.00019178,2]
[346342949,1734900643258,-1428.52,0.00019178,2]
[346342951,1734900643268,-500.0,0.00019178,2]
[346342953,1734900643277,-500.0,0.00019178,2]
[346342954,1734900643287,-500.0,0.00019178,2]
[346342955,1734900643296,-500.0,0.00019178,2]
[346342956,1734900643306,-500.0,0.00019178,2]
[346342957,1734900643315,-500.0,0.00019178,2]
[346342958,1734900643324,-1302.06501835,0.00019178,2]
[346342959,1734900643339,-1040.99498165,0.00019178,2]
[346342960,1734900643354,-500.0,0.00019178,2]
[346342961,1734900643367,-190.5442899,0.00019178,2]
[346342962,1734900643384,-309.4557101,0.00019178,2]
[346342963,1734900643399,-510.15507176,0.00019178,2]
[346342964,1734900643410,-500.0,0.00019178,2]
[346342965,1734900643424,-328.26864758,0.00019178,2]
[346342966,1734900643446,-171.73135242,0.00019178,2]
[346342967,1734900643459,-2758.75,0.00019178,2]
[346342968,1734900643473,-500.0,0.00019178,2]
[346342969,1734900643486,-3163.64,0.00019178,2]
[346342970,1734900643497,-500.0,0.00019178,2]
[346342971,1734900643509,-1442.6,0.00019178,2]
[346342972,1734900643519,-500.0,0.00019178,2]
[346342973,1734900643532,-500.0,0.00019178,2]
[346342974,1734900643544,-500.0,0.00019178,2]
[346342976,1734900643557,-500.0,0.00019178,2]
[346342978,1734900643570,-500.0,0.00019178,2]
[346342980,1734900643583,-500.0,0.00019178,2]
[346342981,1734900643596,-500.0,0.00019178,2]
[346342982,1734900643608,-500.0,0.00019178,2]
[346342984,1734900643622,-500.0,0.00019178,2]
[346342986,1734900643635,-8050.77178472,0.00019178,2]
[346342988,1734900643651,-1123.0,0.00019178,2]
[346342989,1734900643667,-6906.88821528,0.00019178,2]
[346342990,1734900643680,-500.0,0.00019178,2]
[346342991,1734900643693,-1158.19277415,0.00019178,2]
[346342992,1734900643709,-491.94801233,0.00019178,2]
[346342993,1734900643723,-1399.79399091,0.00019178,2]
[346342994,1734900643737,-11.99522261,0.00019178,2]
[346342995,1734900643748,-500.0,0.00019178,2]
[346342996,1734900643759,-500.0,0.00019178,2]
[346342997,1734900643771,-500.0,0.00019178,2]
[346342998,1734900643786,-500.0,0.00019178,2]
[346342999,1734900643797,-4616.61863534,0.00019178,2]
[346343000,1734900644322,-3006.34136466,0.00019178,2]
[346343001,1734900644333,-500.0,0.00019178,2]
[346343002,1734900644347,-500.0,0.00019178,2]
[346343003,1734900644358,-500.0,0.00019178,2]
[346343004,1734900644369,-500.0,0.00019178,2]
[346343005,1734900644380,-500.0,0.00019178,2]
[346343006,1734900644392,-380.73472524,0.00019178,2]
[346343007,1734900644403,-500.0,0.00019178,2]
[346343008,1734900644415,-500.0,0.00019178,2]
[346343009,1734900644427,-500.0,0.00019178,2]
[346343010,1734900644438,-681.66,0.00019178,2]
[346343011,1734900644449,-500.0,0.00019178,2]
[346343012,1734900644460,-6824.67,0.00019178,2]
[346343013,1734900644471,-579.99,0.00019178,2]
[346343014,1734900644482,-500.0,0.00019178,2]
[346343015,1734900644492,-831.26787134,0.00019178,2]
[346343016,1734900644508,-424.48212866,0.00019178,2]
[346343017,1734900644519,-500.0,0.00019178,2]
[346343018,1734900644530,-500.0,0.00019178,2]
[346343019,1734900644542,-1306.65987534,0.00019178,2]
[346343020,1734900644556,-33.69012466,0.00019178,2]
[346343021,1734900644567,-500.0,0.00019178,2]
[346343022,1734900644578,-500.0,0.00019178,2]
[346343023,1734900644590,-500.0,0.00019178,2]
[346343024,1734900644601,-723.04,0.00019178,2]
[346343025,1734900644612,-500.0,0.00019178,2]
[346343026,1734900644623,-500.0,0.00019178,2]
[346343027,1734900644634,-500.0,0.00019178,2]
[346343028,1734900644645,-516.18,0.00019178,2]
[346343029,1734900644656,-500.0,0.00019178,2]
[346343030,1734900644667,-500.0,0.00019178,2]
[346343031,1734900644678,-193.82475976,0.00019178,2]
[346343032,1734900644692,-306.17524024,0.00019178,2]
[346343033,1734900644703,-1548.1,0.00019178,2]
[346343034,1734900644714,-1053.03,0.00019178,2]
[346343035,1734900644728,-500.0,0.00019178,2]
[346343036,1734900644739,-500.0,0.00019178,2]
[346343037,1734900644751,-500.0,0.00019178,2]
[346343038,1734900644762,-500.0,0.00019178,2]
[346343039,1734900644772,-1600.93,0.00019178,2]
[346343040,1734900644783,-500.0,0.00019178,2]
[346343041,1734900644795,-291.76475976,0.00019178,2]
[346343042,1734900644843,-208.23524024,0.00019178,2]
[346343043,1734900644855,-500.0,0.00019178,2]
[346343044,1734900644868,-161.26566842,0.00019178,2]
[346343045,1734900644900,-338.73433158,0.00019178,2]
[346343046,1734900644909,-730.17800758,0.00019178,2]
[346343047,1734900644924,-1666.76199242,0.00019178,2]
[346343048,1734900644934,-221.63697123,0.00019178,2]
[346343049,1734900644944,-500.0,0.00019178,2]
[346343050,1734900644953,-500.0,0.00019178,2]
[346343051,1734900644963,-535.86970079,0.00019178,2]
[346343052,1734900644974,-80.97029921,0.00019178,2]
[346343053,1734900644983,-500.0,0.00019178,2]
[346343054,1734900644992,-490.92,0.00019178,2]
[346343055,1734900645002,-100.69872,0.00019178,2]
[346343078,1734900646193,-500.0,0.00019178,2]
[346343080,1734900646203,-500.0,0.00019178,2]
[346343082,1734900646213,-199.30128,0.00019178,2]
[346343083,1734900646222,-4272.24927676,0.00019184,2]
[346343085,1734900646232,-201.86,0.00019185,2]
[346343087,1734900646241,-203.87,0.00019185,2]
[346343089,1734900646250,-201.02,0.00019185,2]
[346343090,1734900646259,-202.94,0.00019185,2]
[346343092,1734900646268,-201.34,0.0001925,2]
[346343094,1734900646277,-201.55,0.0001925,2]
[346343095,1734900646286,-201.18,0.0001925,2]
[346343097,1734900646295,-201.56,0.0001925,2]
[346343099,1734900646304,-1634.12086964,0.00019261,2]
[346343100,1734900646317,-155.48174106,0.00019261,2]
[346343101,1734900646326,-3976.21210893,0.00019286,2]
[346343102,1734900646337,-296.03716783,0.00019286,2]
[346343103,1734900646348,-120.03308914,0.00019329,2]
[346343104,1734900646359,-375.44438956,0.00019329,2]
[346343105,1734900646368,-8.71890044,0.00019329,2]
[346343106,1734900646378,-378.8694,0.00019329,2]
[346343108,1734900646391,-112.41169956,0.00019329,2]
[346343110,1734900646401,-215.87151072,0.00019329,2]
[346343112,1734900646410,-580.7073126,0.00019329,2]
[346343114,1734900646420,-191.00952212,0.0001933,2]
[346343117,1734900646440,-10.80047788,0.0001933,2]
[346343119,1734900646449,-158.61190125,0.00019342,2]
[346343120,1734900646458,-1789.6026107,0.00019352,2]
[346343121,1734900646467,-448.84124376,0.00019352,2]
[346343122,1734900646476,-222.66472991,0.00019352,2]
[346343123,1734900646485,-4091.2764,0.00019352,2]
[346343124,1734900646495,-2858.2026365,0.00019352,2]
[346343127,1734900646507,-3772.8222518,0.00019352,2]
[346343129,1734900646517,-619.02,0.00019352,2]
[346343131,1734900646528,-427.9694705,0.00019352,2]
[346343133,1734900646543,-50738.2509412,0.00019352,2]
[346343135,1734900646552,-212.6521,0.00019352,2]
[346343138,1734900646562,-1000.0,0.00019352,2]
[346343140,1734900646572,-4272.24927676,0.00019388,2]
[346343142,1734900646581,-2074.49489997,0.00019443,2]
[346343144,1734900646590,-1789.6026107,0.00019443,2]
[346343145,1734900646599,-448.84124374,0.00019443,2]
[346343147,1734900646609,-2318.7628791,0.00019446,2]
[346343150,1734900646618,-1715.91047985,0.00019448,2]
[346343152,1734900646626,-2074.49489997,0.00019448,2]
[346343154,1734900646635,-17619.03236729,0.00019449,2]
[346343156,1734900646644,-1715.91047985,0.0001945,2]
[346343159,1734900646653,-949.25,0.0001945,2]
[346343161,1734900646662,-2318.7628791,0.0001945,2]
[346343163,1734900646671,-2061.3,0.00019451,2]
[346343166,1734900646680,-2061.3,0.00019451,2]
[346343168,1734900646689,-500.0,0.00019451,2]
[346343170,1734900646699,-1744.8,0.00019451,2]
[346343173,1734900646708,-2614.15582775,0.00019451,2]
[346343176,1734900646717,-652.398001,0.00019452,2]
[346343178,1734900646726,-1530.948863,0.00019452,2]
[346343180,1734900646736,-500.0,0.00019452,2]
[346343182,1734900646745,-181.81792629,0.00019452,2]
[346343184,1734900646754,-500.0,0.00019452,2]
[346343186,1734900646763,-500.0,0.00019452,2]
[346343188,1734900646773,-500.0,0.00019452,2]
[346343190,1734900646782,-456.07026365,0.00019452,2]
[346343192,1734900646791,-639.01502989,0.00019452,2]
[346343194,1734900646800,-544.87,0.00019452,2]
[346343196,1734900646810,-500.0,0.00019452,2]
[346343198,1734900646819,-500.0,0.00019452,2]
[346343200,1734900646830,-500.0,0.00019452,2]
[346343202,1734900646840,-500.0,0.00019452,2]
[346343204,1734900646849,-500.0,0.00019452,2]
[346343206,1734900646858,-500.0,0.00019452,2]
[346343208,1734900646867,-500.0,0.00019452,2]
[346343210,1734900646876,-500.0,0.00019452,2]
[346343212,1734900646885,-500.0,0.00019452,2]
[346343214,1734900646895,-500.0,0.00019452,2]
[346343216,1734900646904,-500.0,0.00019452,2]
[346343218,1734900646913,-500.0,0.00019452,2]
[346343220,1734900646923,-500.0,0.00019452,2]
[346343222,1734900646933,-3167.62,0.00019452,2]
[346343224,1734900646942,-500.0,0.00019452,2]
[346343226,1734900646951,-500.0,0.00019452,2]
[346343228,1734900646960,-500.0,0.00019452,2]
[346343230,1734900646969,-500.0,0.00019452,2]
[346343232,1734900646979,-262.38104355,0.00019452,2]
[346343234,1734900646988,-500.0,0.00019452,2]
[346343236,1734900646997,-613.64,0.00019452,2]
[346343238,1734900647007,-500.0,0.00019452,2]
[346343240,1734900647016,-500.0,0.00019452,2]
[346343242,1734900647025,-500.0,0.00019452,2]
[346343244,1734900647034,-203.7,0.00019452,2]
[346343245,1734900647044,-187.89,0.00019452,2]
[346343247,1734900647053,-500.0,0.00019452,2]
[346343249,1734900647065,-500.0,0.00019452,2]
[346343251,1734900647074,-500.0,0.00019452,2]
[346343253,1734900647083,-500.0,0.00019452,2]
[346343255,1734900647092,-374.88,0.00019452,2]
[346343257,1734900647102,-500.0,0.00019452,2]
[346343259,1734900647111,-500.0,0.00019452,2]
[346343261,1734900647120,-500.0,0.00019452,2]
[346343263,1734900647129,-1828.75,0.00019452,2]
[346343265,1734900647138,-500.0,0.00019452,2]
[346343267,1734900647147,-618.15,0.00019452,2]
[346343269,1734900647156,-500.0,0.00019452,2]
[346343271,1734900647167,-500.0,0.00019452,2]
[346343273,1734900647177,-500.0,0.00019452,2]
[346343275,1734900647186,-544.42,0.00019452,2]
[346343277,1734900647195,-500.0,0.00019452,2]
[346343279,1734900647204,-500.0,0.00019452,2]
[346343281,1734900647213,-588.79,0.00019452,2]
[346343283,1734900647222,-500.0,0.00019452,2]
[346343285,1734900647230,-500.0,0.00019452,2]
[346343287,1734900647239,-500.0,0.00019452,2]
[346343289,1734900647248,-500.0,0.00019452,2]
[346343291,1734900647257,-500.0,0.00019452,2]
[346343293,1734900647266,-500.0,0.00019452,2]
[346343295,1734900647275,-500.0,0.00019452,2]
[346343297,1734900647284,-500.0,0.00019452,2]
[346343299,1734900647293,-500.0,0.00019452,2]
[346343301,1734900647302,-417.81879002,0.00019452,2]
[346343303,1734900647311,-500.0,0.00019452,2]
[346343305,1734900647320,-500.0,0.00019452,2]
[346343307,1734900647329,-588.67,0.00019452,2]
[346343309,1734900647338,-538.79,0.00019452,2]
[346343311,1734900647351,-522.66,0.00019452,2]
[346343313,1734900647361,-500.0,0.00019452,2]
[346343315,1734900647370,-500.0,0.00019452,2]
[346343317,1734900647379,-500.0,0.00019452,2]
[346343319,1734900647390,-557.81,0.00019452,2]
[346343320,1734900647399,-500.0,0.00019452,2]
[346343321,1734900647409,-500.0,0.00019452,2]
[346343322,1734900647418,-500.0,0.00019452,2]
[346343323,1734900647429,-500.0,0.00019452,2]
[346343324,1734900647438,-500.0,0.00019452,2]
[346343325,1734900647447,-500.0,0.00019452,2]
[346343326,1734900647456,-242.46657855,0.00019452,2]
[346343327,1734900647466,-585.3,0.00019452,2]
[346343328,1734900647476,-500.0,0.00019452,2]
[346343329,1734900647486,-500.0,0.00019452,2]
[346343330,1734900647495,-629.23,0.00019452,2]
[346343331,1734900647504,-567.72,0.00019452,2]
[346343332,1734900647514,-500.0,0.00019452,2]
[346343333,1734900647524,-500.0,0.00019452,2]
[346343334,1734900647533,-500.0,0.00019452,2]
[346343335,1734900647542,-500.0,0.00019452,2]
[346343337,1734900647551,-500.0,0.00019452,2]
[346343339,1734900647560,-500.0,0.00019452,2]
[346343340,1734900647569,-500.0,0.00019452,2]
[346343342,1734900647578,-500.0,0.00019452,2]
[346343344,1734900647588,-911.47,0.00019452,2]
[346343346,1734900647597,-500.0,0.00019452,2]
[346343348,1734900647606,-500.0,0.00019452,2]
[346343350,1734900647616,-517.88,0.00019452,2]
[346343352,1734900647625,-500.0,0.00019452,2]
[346343354,1734900647634,-500.0,0.00019452,2]
[346343356,1734900647643,-500.0,0.00019452,2]
[346343358,1734900647653,-500.0,0.00019452,2]
[346343360,1734900647661,-614.33,0.00019452,2]
[346343362,1734900647670,-500.0,0.00019452,2]
[346343364,1734900647679,-500.0,0.00019452,2]
[346343366,1734900647689,-543.87405396,0.00019452,2]
[346343368,1734900647698,-500.0,0.00019452,2]
[346343370,1734900647707,-500.0,0.00019452,2]
[346343372,1734900647717,-500.0,0.00019452,2]
[346343374,1734900647726,-500.0,0.00019452,2]
[346343376,1734900647735,-500.0,0.00019452,2]
[346343378,1734900647745,-500.0,0.00019452,2]
[346343380,1734900647754,-500.0,0.00019452,2]
[346343382,1734900647764,-500.0,0.00019452,2]
[346343384,1734900647773,-500.0,0.00019452,2]
[346343386,1734900647783,-500.0,0.00019452,2]
[346343388,1734900647795,-500.0,0.00019452,2]
[346343390,1734900647805,-500.0,0.00019452,2]
[346343392,1734900647817,-747.92,0.00019452,2]
[346343394,1734900647827,-500.0,0.00019452,2]
[346343396,1734900647836,-566.35,0.00019452,2]
[346343398,1734900647845,-500.0,0.00019452,2]
[346343400,1734900647854,-500.0,0.00019452,2]
[346343402,1734900647863,-500.0,0.00019452,2]
[346343404,1734900647872,-500.0,0.00019452,2]
[346343406,1734900647881,-499.61514256,0.00019452,2]
[346343408,1734900647891,-500.0,0.00019452,2]
[346343410,1734900647900,-500.0,0.00019452,2]
[346343412,1734900647909,-500.0,0.00019452,2]
[346343414,1734900647919,-500.0,0.00019452,2]
[346343416,1734900647928,-500.0,0.00019452,2]
[346343418,1734900647938,-500.0,0.00019452,2]
[346343420,1734900647948,-500.0,0.00019452,2]
[346343422,1734900647957,-501.07541315,0.00019452,2]
[346343424,1734900647967,-500.0,0.00019452,2]
[346343426,1734900647976,-500.0,0.00019452,2]
[346343428,1734900647985,-500.0,0.00019452,2]
[346343430,1734900647995,-500.0,0.00019452,2]
[346343432,1734900648004,-500.0,0.00019452,2]
[346343434,1734900648014,-503.59737238,0.00019452,2]
[346343436,1734900648023,-500.0,0.00019452,2]
[346343438,1734900648033,-500.0,0.00019452,2]
[346343440,1734900648043,-162.8462636,0.00019452,2]
[346343442,1734900648062,-500.0,0.00019452,2]
[346343444,1734900648072,-500.0,0.00019452,2]
[346343446,1734900648082,-500.0,0.00019452,2]
[346343448,1734900648092,-500.0,0.00019452,2]
[346343450,1734900648102,-500.0,0.00019452,2]
[346343452,1734900648112,-500.0,0.00019452,2]
[346343454,1734900648122,-500.0,0.00019452,2]
[346343456,1734900648132,-500.0,0.00019452,2]
[346343458,1734900648141,-500.0,0.00019452,2]
[346343460,1734900648151,-500.0,0.00019452,2]
[346343462,1734900648162,-500.0,0.00019452,2]
[346343464,1734900648172,-500.0,0.00019452,2]
[346343465,1734900648182,-500.0,0.00019452,2]
[346343468,1734900648192,-500.0,0.00019452,2]
[346343470,1734900648202,-517.79580689,0.00019452,2]
[346343472,1734900648212,-500.0,0.00019452,2]
[346343474,1734900648221,-500.0,0.00019452,2]
[346343475,1734900648231,-500.0,0.00019452,2]
[346343478,1734900648240,-500.0,0.00019452,2]
[346343480,1734900648250,-500.0,0.00019452,2]
[346343482,1734900648260,-500.0,0.00019452,2]
[346343484,1734900648269,-500.0,0.00019452,2]
[346343486,1734900648279,-500.0,0.00019452,2]
[346343488,1734900648289,-500.0,0.00019452,2]
[346343490,1734900648299,-500.0,0.00019452,2]
[346343492,1734900648308,-272.71258773,0.00019452,2]
[346343494,1734900648320,-500.0,0.00019452,2]
[346343496,1734900648330,-500.0,0.00019452,2]
[346343498,1734900648339,-500.0,0.00019452,2]
[346343500,1734900648353,-500.0,0.00019452,2]
[346343502,1734900648364,-500.0,0.00019452,2]
[346343504,1734900648374,-500.0,0.00019452,2]
[346343506,1734900648384,-500.0,0.00019452,2]
[346343508,1734900648395,-500.0,0.00019452,2]
[346343510,1734900648405,-500.0,0.00019452,2]
[346343512,1734900648415,-500.0,0.00019452,2]
[346343514,1734900648426,-500.0,0.00019452,2]
[346343517,1734900648437,-500.0,0.00019452,2]
[346343519,1734900648446,-500.0,0.00019452,2]
[346343521,1734900648456,-500.0,0.00019452,2]
[346343523,1734900648466,-500.0,0.00019452,2]
[346343524,1734900648476,-500.0,0.00019452,2]
[346343526,1734900648485,-500.0,0.00019452,2]
[346343528,1734900648494,-500.0,0.00019452,2]
[346343530,1734900648504,-1329.63,0.00019452,2]
[346343532,1734900648514,-500.0,0.00019452,2]
[346343535,1734900648524,-500.0,0.00019452,2]
[346343537,1734900648533,-500.0,0.00019452,2]
[346343539,1734900648543,-500.0,0.00019452,2]
[346343541,1734900648552,-500.0,0.00019452,2]
[346343543,1734900648562,-500.0,0.00019452,2]
[346343545,1734900648571,-500.0,0.00019452,2]
[346343546,1734900648582,-500.0,0.00019452,2]
[346343549,1734900648591,-500.0,0.00019452,2]
[346343551,1734900648601,-302.96,0.00019452,2]
[346343553,1734900648612,-500.0,0.00019452,2]
[346343554,1734900648621,-500.0,0.00019452,2]
[346343556,1734900648631,-1000.0,0.00019452,2]
[346343558,1734900648641,-500.0,0.00019452,2]
[346343560,1734900648650,-500.0,0.00019452,2]
[346343562,1734900648660,-500.0,0.00019452,2]
[346343564,1734900648670,-686.94,0.00019452,2]
[346343566,1734900648680,-500.0,0.00019452,2]
[346343568,1734900648690,-500.0,0.00019452,2]
[346343570,1734900648701,-500.0,0.00019452,2]
[346343573,1734900648710,-511.2,0.00019452,2]
[346343574,1734900648720,-500.0,0.00019452,2]
[346343577,1734900648730,-500.0,0.00019452,2]
[346343578,1734900648740,-280.85892325,0.00019452,2]
[346343581,1734900648750,-597.47470522,0.00019452,2]
[346343583,1734900648759,-500.0,0.00019452,2]
[346343585,1734900648769,-500.0,0.00019452,2]
[346343587,1734900648779,-342.41076137,0.00019452,2]
[346343589,1734900648788,-500.0,0.00019452,2]
[346343591,1734900648797,-500.0,0.00019452,2]
[346343593,1734900648807,-500.0,0.00019452,2]
[346343595,1734900648820,-2091.43,0.00019452,2]
[346343597,1734900648830,-500.0,0.00019452,2]
[346343599,1734900648839,-883.91,0.00019452,2]
[346343600,1734900648848,-521.65,0.00019452,2]
[346343602,1734900648858,-2011.52,0.00019452,2]
[346343604,1734900648868,-500.0,0.00019452,2]
[346343606,1734900648878,-500.0,0.00019452,2]
[346343608,1734900648888,-500.0,0.00019452,2]
[346343610,1734900648898,-500.0,0.00019452,2]
[346343612,1734900648908,-444.1478477,0.00019452,2]
[346343614,1734900648917,-2030.46,0.00019452,2]
[346343616,1734900648927,-530.67,0.00019452,2]
[346343618,1734900648937,-523.20279671,0.00019452,2]
[346343620,1734900648946,-500.0,0.00019452,2]
[346343622,1734900648956,-500.0,0.00019452,2]
[346343624,1734900648966,-2636.35,0.00019452,2]
[346343626,1734900648975,-199.25,0.00019452,2]
[346343629,1734900648985,-1199.16,0.00019452,2]
[346343631,1734900648995,-508.70668694,0.00019452,2]
[346343633,1734900649004,-2466.55,0.00019452,2]
[346343635,1734900649013,-242.07986083,0.00019452,2]
[346343637,1734900649023,-500.0,0.00019452,2]
[346343639,1734900649033,-500.0,0.00019452,2]
[346343641,1734900649042,-536.07,0.00019452,2]
[346343643,1734900649052,-609.07,0.00019452,2]
[346343662,1734900649227,-649.22860212,0.00019452,2]
[346343664,1734900649238,-2369.7,0.00019452,2]
[346343666,1734900649248,-544.18,0.00019452,2]
[346343669,1734900649258,-500.0,0.00019452,2]
[346343671,1734900649267,-500.0,0.00019452,2]
[346343673,1734900649277,-500.0,0.00019452,2]
[346343675,1734900649287,-500.0,0.00019452,2]
[346343677,1734900649296,-500.0,0.00019452,2]
[346343679,1734900649306,-500.0,0.00019452,2]
[346343681,1734900649316,-13695.05,0.00019452,2]
[346343682,1734900649325,-768.79,0.00019452,2]
[346343685,1734900649335,-1571.81,0.00019452,2]
[346343687,1734900649348,-500.0,0.00019452,2]
[346343689,1734900649357,-500.0,0.00019452,2]
[346343691,1734900649367,-1393.48,0.00019452,2]
[346343693,1734900649377,-500.0,0.00019452,2]
[346343695,1734900649387,-507.20823189,0.00019452,2]
[346343697,1734900649397,-500.0,0.00019452,2]
[346343699,1734900649407,-500.0,0.00019452,2]
[346343701,1734900649417,-500.0,0.00019452,2]
[346343703,1734900649427,-779.43,0.00019452,2]
[346343705,1734900649437,-500.0,0.00019452,2]
[346343707,1734900649447,-500.0,0.00019452,2]
[346343709,1734900649456,-500.0,0.00019452,2]
[346343711,1734900649465,-3339.62,0.00019452,2]
[346343712,1734900649475,-500.0,0.00019452,2]
[346343714,1734900649484,-4911.23457385,0.00019452,2]
[346343744,1734900649748,-2380.525,0.00019452,2]
[346343748,1734900649777,-2746.73849264,0.00019452,2]
[346343759,1734900649872,-824.13778099,0.00019452,2]
[346343762,1734900649884,-1102.25001056,0.00019452,2]
[346343764,1734900649895,-3500.55377431,0.00019452,2]
[346343767,1734900649910,-302.38002,0.00019452,2]
[346344510,1734901052975,267.17,0.0002,120]
[346344511,1734901058803,161.56251713,0.00010137,2]
[346344512,1734901058825,23.36748287,0.00010137,2]
[346344604,1734901832461,-220.74,0.00014554,2]
[346344605,1734901832471,-200.77142083,0.00014554,2]
[346344606,1734901832481,-166.25,0.00014784,2]
[346344607,1734901832490,-1222.89,0.0001659,2]
[346344608,1734901832500,-315.28253475,0.00017578,2]
[346344609,1734901832508,-160.72,0.00017594,2]
[346344610,1734901832517,-160.72,0.00017601,2]
[346344611,1734901832527,-160.72,0.00017608,2]
[346344612,1734901832537,-250.0,0.00017616,2]
[346344613,1734901832546,-160.72,0.00017616,2]
[346344614,1734901832556,-160.72,0.00017623,2]
[346344615,1734901832565,-160.72,0.0001763,2]
[346344616,1734901832575,-160.72,0.00017638,2]
[346344617,1734901832584,-160.72,0.00017645,2]
[346344618,1734901832593,-160.72,0.00017652,2]
[346344619,1734901832603,-160.72,0.0001766,2]
[346344620,1734901832613,-160.72,0.00017667,2]
[346344621,1734901832622,-160.72,0.00017674,2]
[346344622,1734901832631,-165.85,0.00017678,2]
[346344623,1734901832640,-315.28253473,0.00017681,2]
[346344624,1734901832649,-160.72,0.00017682,2]
[346344625,1734901832658,-4191.51719781,0.00017781,2]
[346344626,1734901832670,-1891.03060736,0.00017781,2]
[346344627,1734901832691,-640.22546313,0.00017294,2]
[346344628,1734901832704,-430.32453687,0.00017294,2]
[346344629,1734901832713,-937.92579813,0.00017781,2]
[346344630,1734901832736,-11449.8605967,0.00017781,2]
[346344631,1734901832746,-488.83,0.00017801,2]
[346344632,1734901832755,-250.0,0.00017833,2]
[346344633,1734901832766,-200.0,0.0001788,2]
[346344634,1734901832776,-200.0,0.00017881,2]
[346344635,1734901832785,-3062.32753812,0.00017881,2]
[346344636,1734901832797,-8717.61839632,0.00017881,2]
[346344637,1734901832824,-12120.05406556,0.00017881,2]
[346344638,1734901832834,-827.22,0.00017962,2]
[346344639,1734901832843,-150.0,0.00018,2]
[346344640,1734901832852,-150.0,0.00018,2]
[346344641,1734901832861,-282.87370948,0.00018,2]
[346344642,1734901832870,-150.00000001,0.00018,2]
[346344643,1734901832880,-3888.71,0.00018234,2]
[346344644,1734901832890,-1500.0,0.00018332,2]
[346344645,1734901832899,-1000.0,0.00018336,2]
[346344646,1734901832909,-726.41,0.00018363,2]